fUSD/lending_fUSD_20250708
["ID","MTS","AMOUNT","RATE_DAILY","PERIOD"]
[370303835,1751943054655,-460.0,0.0003041,7]
[370303836,1751943054665,-2128.13,0.0003041,7]
[370303837,1751943054675,-487.35051281,0.0003041,7]
[370303838,1751943054684,-460.0,0.0003041,7]
[370303839,1751943054693,-460.0,0.0003041,7]
[370303840,1751943054703,-460.0,0.0003041,7]
[370303841,1751943054713,-496.38653615,0.0003041,7]
[370303842,1751943054723,-460.0,0.0003041,7]
[370303843,1751943054732,-460.0,0.0003041,7]
[370303844,1751943054741,-490.0,0.0003041,7]
[370303845,1751943054751,-460.0,0.0003041,7]
[370303846,1751943054760,-848.59,0.0003041,7]
[370303847,1751943054770,-262.11,0.0003041,7]
[370303848,1751943054781,-582.07,0.0003041,7]
[370303849,1751943054791,-460.0,0.0003041,7]
[370303850,1751943054801,-460.0,0.0003041,7]
[370303851,1751943054810,-460.0,0.0003041,7]
[370303852,1751943054820,-564.19374662,0.0003041,7]
[370303853,1751943054830,-490.0,0.0003041,7]
[370303854,1751943054839,-460.0,0.0003041,7]
[370303855,1751943054849,-460.0,0.0003041,7]
[370303856,1751943054859,-460.0,0.0003041,7]
[370303857,1751943054868,-460.0,0.0003041,7]
[370303858,1751943054877,-553.26844107,0.0003041,7]
[370303859,1751943054887,-398.99,0.0003041,7]
[370303860,1751943054897,-460.0,0.0003041,7]
[370303861,1751943054908,-460.0,0.0003041,7]
[370303862,1751943054918,-460.0,0.0003041,7]
[370303863,1751943054927,-460.0,0.0003041,7]
[370303864,1751943054937,-460.0,0.0003041,7]
[370303865,1751943054947,-460.0,0.0003041,7]
[370303866,1751943054956,-460.0,0.0003041,7]
[370303867,1751943054966,-541.53,0.0003041,7]
[370303868,1751943054977,-554.32134226,0.0003041,7]
[370303869,1751943054987,-1754.58,0.0003041,7]
[370303870,1751943054997,-495.01772428,0.0003041,7]
[370303871,1751943055006,-460.0,0.0003041,7]
[370303872,1751943055016,-460.0,0.0003041,7]
[370303873,1751943055026,-449.0,0.0003041,7]
[370303874,1751943055036,-287.27444002,0.0003041,7]
[370303875,1751943055046,-460.0,0.0003041,7]
[370303876,1751943055056,-460.0,0.0003041,7]
[370303877,1751943055066,-953.07,0.0003041,7]
[370303878,1751943055076,-460.0,0.0003041,7]
[370303879,1751943055086,-1190.48,0.0003041,7]
[370303880,1751943055096,-460.0,0.0003041,7]
[370303881,1751943055106,-460.0,0.0003041,7]
[370303882,1751943055116,-1456.13,0.0003041,7]
[370303883,1751943055126,-306.10468358,0.0003041,7]
[370303884,1751943055483,-413.38302536,0.00030136,7]
[370303885,1751943055894,-46.61697464,0.00030136,7]
[370303886,1751943055905,-455.87295381,0.00030136,7]
[370303887,1751943055915,-460.0,0.00030136,7]
[370303888,1751943055924,-460.0,0.00030136,7]
[370303889,1751943055933,-460.0,0.00030136,7]
[370303890,1751943055942,-460.0,0.00030136,7]
[370303891,1751943055951,-153.89531642,0.0003041,7]
[370303892,1751943055961,-780.25,0.0003041,7]
[370303893,1751943055970,-260.09,0.0003041,7]
[370303894,1751943055979,-460.0,0.0003041,7]
[370303895,1751943055988,-460.0,0.0003041,7]
[370303896,1751943055999,-1445.3,0.0003041,7]
[370303897,1751943056010,-740.75,0.0003041,7]
[370303898,1751943056020,-165.80271658,0.0003041,7]
[370303899,1751943056029,-1138.5,0.0003041,7]
[370303900,1751943056039,-468.7,0.0003041,7]
[370303901,1751943056049,-460.0,0.0003041,7]
[370303902,1751943056058,-439.99,0.0003041,7]
[370303903,1751943056069,-460.0,0.0003041,7]
[370303904,1751943056079,-460.0,0.0003041,7]
[370303905,1751943056089,-300.0,0.0003041,2]
[370303906,1751943056098,-479.31,0.0003041,7]
[370303907,1751943056108,-460.0,0.0003041,7]
[370303908,1751943056117,-460.0,0.0003041,7]
[370303909,1751943056127,-460.0,0.0003041,7]
[370303910,1751943056137,-460.0,0.0003041,7]
[370303911,1751943056146,-460.0,0.0003041,7]
[370303912,1751943056155,-502.66882616,0.0003041,7]
[370303913,1751943056165,-538.64,0.0003041,7]
[370303914,1751943056175,-704.14,0.0003041,7]
[370303915,1751943056184,-460.0,0.0003041,7]
[370303916,1751943056193,-460.0,0.0003041,7]
[370303917,1751943056203,-460.0,0.0003041,7]
[370303918,1751943056212,-528.94,0.0003041,7]
[370303919,1751943056221,-460.0,0.0003041,7]
[370303920,1751943056230,-460.0,0.0003041,7]
[370303921,1751943056240,-2463.83,0.0003041,7]
[370303922,1751943056249,-569.19770028,0.0003041,7]
[370303923,1751943056258,-460.0,0.0003041,7]
[370303924,1751943056267,-938.91,0.0003041,7]
[370303925,1751943056277,-559.59163537,0.0003041,7]
[370303926,1751943056286,-460.0,0.0003041,7]
[370303927,1751943056295,-1348.58,0.0003041,7]
[370303928,1751943056304,-1125.85,0.0003041,7]
[370303929,1751943056314,-460.0,0.0003041,7]
[370303930,1751943056323,-460.0,0.0003041,7]
[370303931,1751943056332,-460.0,0.0003041,7]
[370303932,1751943056341,-460.0,0.0003041,7]
[370303933,1751943056351,-460.0,0.0003041,7]
[370303934,1751943056360,-460.0,0.0003041,7]
[370303935,1751943056369,-460.0,0.0003041,7]
[370303936,1751943056378,-554.94,0.0003041,7]
[370303937,1751943056387,-460.0,0.0003041,7]
[370303938,1751943056396,-460.0,0.0003041,7]
[370303939,1751943056406,-564.11,0.0003041,7]
[370303940,1751943056415,-460.0,0.0003041,7]
[370303941,1751943056424,-571.01,0.0003041,7]
[370303942,1751943056434,-793.81,0.0003041,7]
[370303943,1751943056443,-460.0,0.0003041,7]
[370303944,1751943056452,-460.0,0.0003041,7]
[370303945,1751943056462,-460.0,0.0003041,7]
[370303946,1751943056471,-659.47,0.0003041,7]
[370303947,1751943056480,-460.0,0.0003041,7]
[370303948,1751943056489,-460.0,0.0003041,7]
[370303949,1751943056499,-460.0,0.0003041,7]
[370303950,1751943056508,-460.0,0.0003041,7]
[370303951,1751943056517,-460.0,0.0003041,7]
[370303952,1751943056526,-460.0,0.0003041,7]
[370303953,1751943056537,-553.64,0.0003041,7]
[370303954,1751943056546,-312.34,0.0003041,7]
[370303955,1751943056555,-470.86,0.0003041,7]
[370303956,1751943056565,-578.82,0.0003041,7]
[370303957,1751943056574,-460.0,0.0003041,7]
[370303958,1751943056583,-691.65,0.0003041,7]
[370303959,1751943056592,-460.0,0.0003041,7]
[370303960,1751943056602,-460.0,0.0003041,7]
[370303961,1751943056655,-1185.13,0.0003041,7]
[370303962,1751943056666,-460.0,0.0003041,7]
[370303963,1751943056676,-460.0,0.0003041,7]
[370303964,1751943056686,-1168.28,0.0003041,7]
[370303965,1751943056695,-466.84,0.0003041,7]
[370303966,1751943056705,-460.0,0.0003041,7]
[370303967,1751943056714,-460.0,0.0003041,7]
[370303968,1751943056723,-460.0,0.0003041,7]
[370303969,1751943056732,-685.81,0.0003041,7]
[370303970,1751943056742,-460.0,0.0003041,7]
[370303971,1751943056752,-611.02,0.0003041,7]
[370303972,1751943056763,-460.0,0.0003041,7]
[370303973,1751943056773,-460.0,0.0003041,7]
[370303974,1751943056783,-460.0,0.0003041,7]
[370303975,1751943056793,-56.84387674,0.0003041,7]
[370303976,1751943056806,-403.15612326,0.0003041,7]
[370303977,1751943056818,-503.27,0.0003041,7]
[370303978,1751943056838,-1182.7,0.0003041,7]
[370303979,1751943056848,-460.0,0.0003041,7]
[370303980,1751943056857,-827.03,0.0003041,7]
[370303981,1751943056867,-460.0,0.0003041,7]
[370303982,1751943056877,-490.0,0.0003041,7]
[370303983,1751943056887,-1719.78,0.0003041,7]
[370303984,1751943056896,-460.0,0.0003041,7]
[370303985,1751943056905,-460.0,0.0003041,7]
[370303986,1751943056915,-460.0,0.0003041,7]
[370303987,1751943056924,-3016.36,0.0003041,7]
[370303988,1751943056933,-244.64186439,0.0003041,7]
[370303989,1751943056943,-456.22201235,0.0003041,7]
[370303990,1751943056965,-153.11798765,0.0003041,7]
[370303991,1751943056975,-704.75,0.0003041,7]
[370303992,1751943056984,-493.6,0.0003041,7]
[370303993,1751943056993,-460.0,0.0003041,7]
[370303994,1751943057003,-460.0,0.0003041,7]
[370303995,1751943057012,-707.46,0.0003041,7]
[370303996,1751943057021,-516.26,0.0003041,7]
[370303997,1751943057030,-96.11405224,0.0003041,7]
[370303999,1751943154966,11003.66643381,0.0002,120]
[370304001,1751943352836,421.07,0.00030136,120]
[370304002,1751943695654,159.86,0.00029019,120]
[370304003,1751943937129,151.72,0.00013699,2]
[370304004,1751943962144,235.42181144,0.00013699,2]
[370304010,1751944231355,-250.0,0.00015,2]
[370304011,1751944231365,-154.01313445,0.0001982,2]
[370304012,1751944231513,-96.55518127,0.0001982,2]
[370304013,1751944231525,-170.74,0.00022718,2]
[370304014,1751944231534,-192.33,0.00025644,2]
[370304015,1751944231543,-34.39547923,0.00026033,2]
[370304016,1751944231618,-465.60452077,0.00026033,2]
[370304017,1751944231627,-500.0,0.00027339,4]
[370304018,1751944231637,-155.62,0.00028255,2]
[370304019,1751944231647,-193.83816586,0.00028398,2]
[370304042,1751944237328,-482.0,0.00028398,2]
[370304043,1751944237340,-507.07857263,0.00028398,2]
[370304044,1751944237592,-434.42987864,0.00028398,2]
[370304045,1751944237604,-1979.10338287,0.00028398,2]
[370304046,1751944237613,-200.0,0.0002842,7]
[370304047,1751944237624,-1000.0,0.00028432,2]
[370304048,1751944237635,-257.28,0.00028432,2]
[370304049,1751944237646,-108.28854781,0.00028639,2]
[370304050,1751944237659,-516.22,0.00028639,2]
[370304051,1751944237671,-7.28145219,0.00028639,2]
[370304052,1751944237681,-479.87162852,0.00028646,6]
[370304072,1751944239534,-20.12837148,0.00028646,6]
[370304073,1751944239544,-300.0,0.00028802,2]
[370304074,1751944239554,-4030.67162852,0.00028803,2]
[370304075,1751944239566,-969.32837148,0.00028803,2]
[370304076,1751944239576,-603.98,0.00028803,2]
[370304077,1751944239586,-603.98,0.00028818,2]
[370304078,1751944239596,-603.98,0.00028833,2]
[370304079,1751944239605,-603.98,0.00028848,2]
[370304080,1751944239615,-603.98,0.00028863,2]
[370304081,1751944239626,-603.98,0.00028879,2]
[370304082,1751944239635,-164.74,0.00028887,2]
[370304083,1751944239646,-603.98,0.00028894,2]
[370304084,1751944239655,-1329.99247615,0.000289,20]
[370304085,1751944239665,-603.98,0.00028909,2]
[370304086,1751944239676,-603.98,0.00028924,2]
[370304087,1751944239686,-603.98,0.00028939,2]
[370304088,1751944239695,-603.98,0.00028954,2]
[370304089,1751944239706,-603.98,0.00028969,2]
[370304090,1751944239716,-603.98,0.00028985,2]
[370304091,1751944239726,-603.98,0.00029,2]
[370304092,1751944239736,-15.22947499,0.00029,2]
[370304093,1751944239756,-736.90940462,0.00029,2]
[370304094,1751944239775,-247.86112039,0.00029,2]
[370304095,1751944239785,-601.0,0.00029,5]
[370304096,1751944239795,-603.98,0.00029015,2]
[370304097,1751944239805,-603.98,0.0002903,2]
[370304098,1751944239815,-603.98,0.00029045,2]
[370304099,1751944239824,-603.98,0.0002906,2]
[370304100,1751944239835,-603.98,0.00029075,2]
[370304101,1751944239844,-603.98,0.00029091,2]
[370304102,1751944239854,-837.09214054,0.00029095,2]
[370304103,1751944239864,-250.0,0.00029103,2]
[370304104,1751944239874,-23900.0,0.00029237,2]
[370304105,1751944239884,-207.4,0.00029379,2]
[370304106,1751944239894,-160.99,0.00029448,2]
[370304107,1751944239904,-1329.99247595,0.00029486,21]
[370304108,1751944239914,-666.0,0.00029522,2]
[370304109,1751944239925,-169.8,0.00029648,2]
[370304110,1751944239935,-5245.39,0.00029735,2]
[370304111,1751944239946,-769.98207878,0.00029738,3]
[370304112,1751944239956,-167.87,0.00029817,2]
[370304113,1751944239967,-769.98207878,0.00029936,3]
[370304114,1751944239977,-500.0,0.00029952,8]
[370304115,1751944239986,-1515.34747495,0.0003,7]
[370304116,1751944239996,-2000.0,0.0003,3]
[370304117,1751944240005,-293.51162772,0.00030026,2]
[370304118,1751944240015,-2177.83254756,0.00030035,2]
[370304119,1751944240026,-5000.0,0.00030036,2]
[370304120,1751944240036,-927.5338,0.00030036,2]
[370304121,1751944240046,-1816.21673416,0.00030036,2]
[370304122,1751944240056,-175.08125301,0.00030036,15]
[370304123,1751944240066,-590.19284475,0.00030067,2]
[370304125,1751944240076,-1329.99247595,0.00030072,22]
[370304127,1751944240086,-2100.0,0.000301,5]
[370304129,1751944240096,-151.0,0.00030108,2]
[370304131,1751944240106,-151.0,0.00030108,2]
[370304133,1751944240116,-151.0,0.00030108,2]
[370304135,1751944240126,-151.0,0.00030108,2]
[370304137,1751944240136,-290.0,0.00030108,2]
[370304139,1751944240146,-166.43090757,0.00030108,2]
[370304141,1751944240156,-500.0,0.00030108,2]
[370304144,1751944240166,-500.0,0.00030108,2]
[370304146,1751944240176,-500.0,0.00030108,2]
[370304148,1751944240187,-500.0,0.00030108,2]
[370304150,1751944240199,-284.56032325,0.00030108,2]
[370304152,1751944240208,-500.0,0.00030108,2]
[370304154,1751944240218,-500.0,0.00030108,2]
[370304156,1751944240227,-500.0,0.00030108,2]
[370304158,1751944240237,-348.14886219,0.00030108,2]
[370304160,1751944240247,-300.0,0.00030108,2]
[370304162,1751944240257,-300.0,0.00030108,2]
[370304164,1751944240267,-300.0,0.00030108,2]
[370304166,1751944240277,-300.0,0.00030108,2]
[370304168,1751944240286,-300.0,0.00030108,2]
[370304170,1751944240296,-4227.54965,0.0003011,2]
[370304172,1751944240307,-84891.6180198,0.00030126,2]
[370304174,1751944240316,-186.08,0.00030126,2]
[370304176,1751944240326,-527.61,0.00030126,2]
[370304178,1751944240336,-494.31347321,0.00030135,2]
[370304180,1751944240347,-500.06405291,0.00030135,2]
[370304182,1751944240356,-500.0,0.00030135,2]
[370304184,1751944240366,-250.83180316,0.00030135,2]
[370304186,1751944240376,-478.65686478,0.00030135,2]
[370304189,1751944240385,-490.0,0.00030136,7]
[370304191,1751944240395,-460.0,0.00030136,7]
[370304193,1751944240407,-490.0,0.00030136,7]
[370304194,1751944240418,-490.0,0.00030136,7]
[370304195,1751944240428,-460.0,0.00030136,7]
[370304196,1751944240438,-460.0,0.00030136,7]
[370304197,1751944240448,-412.35753251,0.00030136,7]
[370304198,1751944240458,-490.0,0.00030136,7]
[370304199,1751944240468,-460.0,0.00030136,7]
[370304200,1751944240479,-460.0,0.00030136,7]
[370304201,1751944240489,-460.0,0.00030136,7]
[370304202,1751944240499,-460.0,0.00030136,7]
[370304203,1751944240509,-491.65758258,0.00030136,7]
[370304204,1751944240519,-460.0,0.00030136,7]
[370304205,1751944240529,-460.0,0.00030136,7]
[370304206,1751944240539,-491.54418563,0.00030136,7]
[370304207,1751944240550,-460.0,0.00030136,7]
[370304208,1751944240560,-490.0,0.00030136,7]
[370304210,1751944240571,-495.54871097,0.00030136,7]
[370304212,1751944240581,-497.36486751,0.00030136,7]
[370304213,1751944240592,-490.0,0.00030136,7]
[370304214,1751944240602,-460.0,0.00030136,7]
[370304215,1751944240612,-496.58707676,0.00030136,7]
[370304216,1751944240622,-490.0,0.00030136,7]
[370304217,1751944240632,-491.2704266,0.00030136,7]
[370304218,1751944240641,-490.0,0.00030136,7]
[370304219,1751944240651,-490.0,0.00030136,7]
[370304220,1751944240662,-460.0,0.00030136,7]
[370304221,1751944240672,-490.0,0.00030136,7]
[370304222,1751944240683,-490.0,0.00030136,7]
[370304223,1751944240693,-460.0,0.00030136,7]
[370304224,1751944240704,-494.36355862,0.00030136,7]
[370304225,1751944240714,-490.0,0.00030136,7]
[370304226,1751944240724,-491.37294285,0.00030136,7]
[370304227,1751944240733,-490.0,0.00030136,7]
[370304228,1751944240743,-460.0,0.00030136,7]
[370304229,1751944240753,-460.0,0.00030136,7]
[370304230,1751944240763,-492.01718371,0.00030136,7]
[370304231,1751944240773,-495.92740012,0.00030136,7]
[370304232,1751944240784,-460.0,0.00030136,7]
[370304233,1751944240795,-490.0,0.00030136,7]
[370304234,1751944240804,-460.0,0.00030136,7]
[370304235,1751944240814,-460.0,0.00030136,7]
[370304236,1751944240824,-607.24,0.00030136,7]
[370304237,1751944240834,-460.0,0.00030136,7]
[370304238,1751944240844,-490.85768405,0.00030136,7]
[370304239,1751944240854,-460.0,0.00030136,7]
[370304240,1751944240864,-460.0,0.00030136,7]
[370304241,1751944240874,-490.0,0.00030136,7]
[370304242,1751944240884,-460.0,0.00030136,7]
[370304243,1751944240894,-460.0,0.00030136,7]
[370304244,1751944240904,-491.34455442,0.00030136,7]
[370304245,1751944240915,-494.31453524,0.00030136,7]
[370304246,1751944240925,-490.0,0.00030136,7]
[370304247,1751944241181,-460.0,0.00030136,7]
[370304248,1751944241192,-460.0,0.00030136,7]
[370304249,1751944241202,-460.0,0.00030136,7]
[370304250,1751944241211,-460.0,0.00030136,7]
[370304251,1751944241220,-551.58,0.00030136,7]
[370304252,1751944241230,-460.0,0.00030136,7]
[370304253,1751944241239,-490.0,0.00030136,7]
[370304254,1751944241248,-460.0,0.00030136,7]
[370304255,1751944241258,-460.0,0.00030136,7]
[370304256,1751944241268,-460.0,0.00030136,7]
[370304257,1751944241278,-541.22238624,0.00030136,7]
[370304258,1751944241287,-460.0,0.00030136,7]
[370304259,1751944241297,-460.0,0.00030136,7]
[370304260,1751944241307,-460.0,0.00030136,7]
[370304261,1751944241317,-460.0,0.00030136,7]
[370304262,1751944241326,-460.0,0.00030136,7]
[370304263,1751944241336,-460.0,0.00030136,7]
[370304264,1751944241346,-495.04796614,0.00030136,7]
[370304265,1751944241355,-460.0,0.00030136,7]
[370304266,1751944241366,-460.0,0.00030136,7]
[370304267,1751944241375,-460.0,0.00030136,7]
[370304268,1751944241384,-460.0,0.00030136,7]
[370304269,1751944241394,-490.0,0.00030136,7]
[370304270,1751944241405,-460.0,0.00030136,7]
[370304271,1751944241421,-493.38698087,0.00030136,7]
[370304272,1751944241431,-460.0,0.00030136,7]
[370304273,1751944241440,-463.64585166,0.00030136,7]
[370304274,1751944241450,-460.0,0.00030136,7]
[370304275,1751944241461,-460.0,0.00030136,7]
[370304276,1751944241470,-460.0,0.00030136,7]
[370304277,1751944241480,-460.0,0.00030136,7]
[370304278,1751944241490,-460.0,0.00030136,7]
[370304279,1751944241500,-605.92,0.00030136,7]
[370304280,1751944241510,-490.0,0.00030136,7]
[370304281,1751944241521,-460.0,0.00030136,7]
[370304282,1751944241530,-492.82505089,0.00030136,7]
[370304283,1751944241540,-460.0,0.00030136,7]
[370304284,1751944241549,-492.40635298,0.00030136,7]
[370304285,1751944241559,-460.0,0.00030136,7]
[370304286,1751944241569,-492.04785119,0.00030136,7]
[370304287,1751944241578,-460.0,0.00030136,7]
[370304288,1751944241588,-460.0,0.00030136,7]
[370304289,1751944241598,-491.90547749,0.00030136,7]
[370304290,1751944241608,-460.0,0.00030136,7]
[370304291,1751944241617,-490.71424395,0.00030136,7]
[370304292,1751944241629,-460.0,0.00030136,7]
[370304293,1751944241646,-491.01678785,0.00030136,7]
[370304294,1751944241655,-460.0,0.00030136,7]
[370304295,1751944241666,-460.0,0.00030136,7]
[370304296,1751944241675,-460.0,0.00030136,7]
[370304297,1751944241684,-460.0,0.00030136,7]
[370304298,1751944241694,-493.20578196,0.00030136,7]
[370304299,1751944241703,-492.99210403,0.00030136,7]
[370304300,1751944241713,-598.79590112,0.00030136,7]
[370304301,1751944241723,-460.0,0.00030136,7]
[370304302,1751944241733,-460.0,0.00030136,7]
[370304303,1751944241742,-490.0,0.00030136,7]
[370304304,1751944241753,-460.0,0.00030136,7]
[370304305,1751944241761,-460.0,0.00030136,7]
[370304306,1751944241771,-460.0,0.00030136,7]
[370304307,1751944241780,-460.0,0.00030136,7]
[370304308,1751944241790,-460.0,0.00030136,7]
[370304309,1751944241799,-460.0,0.00030136,7]
[370304310,1751944241809,-460.0,0.00030136,7]
[370304311,1751944241817,-460.0,0.00030136,7]
[370304312,1751944241828,-460.0,0.00030136,7]
[370304313,1751944241837,-460.0,0.00030136,7]
[370304314,1751944241847,-460.0,0.00030136,7]
[370304315,1751944241856,-460.0,0.00030136,7]
[370304316,1751944241866,-460.0,0.00030136,7]
[370304317,1751944241875,-460.0,0.00030136,7]
[370304318,1751944241885,-460.0,0.00030136,7]
[370304319,1751944241894,-332.656071,0.00030136,7]
[370304320,1751944241904,-460.0,0.00030136,7]
[370304321,1751944241913,-460.0,0.00030136,7]
[370304322,1751944241922,-460.0,0.00030136,7]
[370304323,1751944241931,-460.0,0.00030136,7]
[370304324,1751944241942,-460.0,0.00030136,7]
[370304325,1751944241951,-460.0,0.00030136,7]
[370304326,1751944241960,-460.0,0.00030136,7]
[370304327,1751944241969,-490.0,0.00030136,7]
[370304328,1751944241979,-460.0,0.00030136,7]
[370304329,1751944241990,-460.0,0.00030136,7]
[370304330,1751944241999,-460.0,0.00030136,7]
[370304331,1751944242009,-460.0,0.00030136,7]
[370304332,1751944242018,-460.0,0.00030136,7]
[370304333,1751944242027,-460.0,0.00030136,7]
[370304334,1751944242037,-460.0,0.00030136,7]
[370304335,1751944242047,-490.0,0.00030136,7]
[370304336,1751944242056,-460.0,0.00030136,7]
[370304337,1751944242066,-460.0,0.00030136,7]
[370304338,1751944242076,-460.0,0.00030136,7]
[370304339,1751944242085,-460.0,0.00030136,7]
[370304340,1751944242095,-460.0,0.00030136,7]
[370304341,1751944242104,-460.0,0.00030136,7]
[370304342,1751944242115,-460.0,0.00030136,7]
[370304343,1751944242124,-460.0,0.00030136,7]
[370304344,1751944242134,-460.0,0.00030136,7]
[370304345,1751944242144,-460.0,0.00030136,7]
[370304346,1751944242154,-460.0,0.00030136,7]
[370304347,1751944242164,-460.0,0.00030136,7]
[370304348,1751944242174,-460.0,0.00030136,7]
[370304349,1751944242183,-460.0,0.00030136,7]
[370304350,1751944242192,-460.0,0.00030136,7]
[370304351,1751944242202,-460.0,0.00030136,7]
[370304352,1751944242211,-460.0,0.00030136,7]
[370304353,1751944242220,-594.67427796,0.00030136,7]
[370304354,1751944242229,-460.0,0.00030136,7]
[370304355,1751944242239,-460.0,0.00030136,7]
[370304356,1751944242248,-460.0,0.00030136,7]
[370304357,1751944242258,-460.0,0.00030136,7]
[370304358,1751944242267,-490.0,0.00030136,7]
[370304359,1751944242277,-460.0,0.00030136,7]
[370304360,1751944242286,-490.0,0.00030136,7]
[370304361,1751944242296,-460.0,0.00030136,7]
[370304362,1751944242305,-500.0,0.00030136,7]
[370304363,1751944242315,-631.95,0.00030136,7]
[370304364,1751944242324,-460.0,0.00030136,7]
[370304365,1751944242334,-460.0,0.00030136,7]
[370304366,1751944242343,-460.0,0.00030136,7]
[370304367,1751944242353,-460.0,0.00030136,7]
[370304368,1751944242363,-500.0,0.00030136,7]
[370304369,1751944242373,-460.0,0.00030136,7]
[370304370,1751944242382,-460.0,0.00030136,7]
[370304371,1751944242392,-490.0,0.00030136,7]
[370304372,1751944242402,-460.0,0.00030136,7]
[370304373,1751944242416,-460.0,0.00030136,7]
[370304374,1751944242425,-460.0,0.00030136,7]
[370304375,1751944242434,-490.0,0.00030136,7]
[370304376,1751944242444,-460.0,0.00030136,7]
[370304377,1751944242455,-490.0,0.00030136,7]
[370304378,1751944242464,-490.0,0.00030136,7]
[370304379,1751944242474,-460.0,0.00030136,7]
[370304380,1751944242484,-494.12262299,0.00030136,7]
[370304381,1751944242494,-460.0,0.00030136,7]
[370304382,1751944242504,-460.0,0.00030136,7]
[370304383,1751944242513,-490.0,0.00030136,7]
[370304384,1751944242523,-363.88098448,0.00030136,7]
[370304385,1751944242532,-300.0,0.00030136,7]
[370304386,1751944242542,-460.0,0.00030136,7]
[370304387,1751944242551,-460.0,0.00030136,7]
[370304388,1751944242561,-460.0,0.00030136,7]
[370304389,1751944242570,-460.0,0.00030136,7]
[370304390,1751944242581,-577.97,0.00030136,7]
[370304391,1751944242590,-490.95461435,0.00030136,7]
[370304392,1751944242599,-460.0,0.00030136,7]
[370304393,1751944242608,-460.0,0.00030136,7]
[370304394,1751944242617,-460.0,0.00030136,7]
[370304395,1751944242626,-460.0,0.00030136,7]
[370304396,1751944242636,-460.0,0.00030136,7]
[370304397,1751944242645,-464.20453601,0.00030136,7]
[370304398,1751944242654,-460.0,0.00030136,7]
[370304399,1751944242664,-490.0,0.00030136,7]
[370304400,1751944242673,-490.0,0.00030136,7]
[370304401,1751944242683,-460.0,0.00030136,7]
[370304402,1751944242692,-460.0,0.00030136,7]
[370304403,1751944242702,-460.0,0.00030136,7]
[370304404,1751944242711,-460.0,0.00030136,7]
[370304405,1751944242721,-460.0,0.00030136,7]
[370304406,1751944242730,-444.04845807,0.00030136,7]
[370304407,1751944242740,-460.0,0.00030136,7]
[370304408,1751944242749,-490.0,0.00030136,7]
[370304409,1751944242758,-460.0,0.00030136,7]
[370304410,1751944242768,-460.0,0.00030136,7]
[370304411,1751944242777,-460.0,0.00030136,7]
[370304412,1751944242786,-460.0,0.00030136,7]
[370304413,1751944242796,-460.0,0.00030136,7]
[370304414,1751944242805,-460.0,0.00030136,7]
[370304415,1751944242814,-460.0,0.00030136,7]
[370304416,1751944242824,-460.0,0.00030136,7]
[370304417,1751944242834,-460.0,0.00030136,7]
[370304418,1751944242843,-460.0,0.00030136,7]
[370304419,1751944242852,-490.0,0.00030136,7]
[370304420,1751944242862,-460.0,0.00030136,7]